bitfinex-derivatives/quotes_BTCF0:USTF0_20250501
["timestamp","ask_amount","ask_price","bid_price","bid_amount"]
[1746117433866,0.2375968,97291.0,97290.0,0.269099]
[1746117434368,0.2054968,97291.0,97290.0,0.269099]
[1746117435269,0.2074968,97291.0,97290.0,0.269099]
[1746117435762,0.1165268,97291.0,97290.0,0.269099]
[1746117439656,0.1496268,97291.0,97290.0,0.269099]
[1746117440866,0.1496268,97291.0,97290.0,0.0333]
[1746117441064,0.2055032,97288.0,97287.0,0.00751624]
[1746117441363,0.2055095,97285.0,97284.0,0.9271099]
[1746117442766,0.2055095,97285.0,97284.0,0.9580099]
[1746117443161,0.2055095,97285.0,97284.0,0.9271099]
[1746117443867,0.2055095,97285.0,97284.0,0.7216]
[1746117444463,0.2055095,97285.0,97284.0,0.9281116]
[1746117445059,0.2055095,97285.0,97284.0,0.73040827]
[1746117445260,0.2055285,97276.0,97275.0,0.3608]
[1746117445962,0.2055285,97276.0,97275.0,0.5663306]
[1746117446169,0.2383285,97276.0,97275.0,0.5663306]
[1746117446680,0.2383285,97276.0,97275.0,0.6340506]
[1746117447170,0.2383285,97276.0,97275.0,0.6330506]
[1746117447367,0.2383285,97276.0,97275.0,0.6350506]
[1746117447565,0.2055285,97276.0,97275.0,0.6350506]
[1746117447755,0.2055285,97276.0,97275.0,0.64260013]
[1746117447962,0.2569048,97279.0,97278.0,0.2055243]
[1746117448265,0.2055264,97277.0,97276.0,0.0633]
[1746117448468,0.2055264,97277.0,97276.0,0.2372274]
[1746117448860,0.2707264,97277.0,97276.0,0.2372274]
[1746117449059,0.2055285,97276.0,97275.0,0.43506953]
[1746117449259,0.2055285,97276.0,97275.0,0.63960013]
[1746117449566,0.2707285,97276.0,97275.0,0.63960013]
[1746117449869,0.2707285,97276.0,97275.0,0.36934953]
[1746117450662,0.2707285,97276.0,97275.0,0.37034953]
[1746117451371,0.2707285,97276.0,97275.0,0.36934953]
[1746117451771,0.28016563,97276.0,97275.0,0.36934953]
[1746117451962,0.17747563,97276.0,97275.0,0.36834953]
[1746117455164,0.17747563,97276.0,97275.0,0.57388013]
[1746117457170,0.17747563,97276.0,97275.0,0.36834953]
[1746117457573,0.17747563,97276.0,97275.0,0.00754953]
[1746117457770,0.2055454,97268.0,97267.0,0.00154214]
[1746117458579,0.2705454,97268.0,97267.0,0.00154214]
[1746117459169,0.2705454,97268.0,97267.0,0.01039634]
[1746117459376,0.2705454,97268.0,97267.0,0.00254214]
[1746117459778,0.2705454,97268.0,97267.0,0.00454214]
[1746117459975,0.2705454,97268.0,97267.0,0.00354214]
[1746117460173,0.2715454,97268.0,97267.0,0.00354214]
[1746117460575,0.2735454,97268.0,97267.0,0.00154214]
[1746117461284,0.2715454,97268.0,97267.0,0.00154214]
[1746117461482,0.2725454,97268.0,97267.0,0.00154214]
[1746117462174,0.2725454,97268.0,97267.0,0.21466276]
[1746117462382,0.2569218,97278.0,97277.0,0.05138]
[1746117462570,0.2569218,97278.0,97277.0,0.6176976]
[1746117462571,0.2875218,97278.0,97277.0,0.6176976]
[1746117462973,0.245866,97278.0,97277.0,0.6176976]
[1746117463175,0.0305,97289.0,97282.0,0.2055159]
[1746117463383,0.2055116,97285.0,97284.0,0.2568821]
[1746117463576,0.2055116,97285.0,97284.0,0.6176821]
[1746117464072,0.2055116,97285.0,97284.0,0.6479821]
[1746117464972,0.1028316,97285.0,97284.0,0.6479821]
[1746117465172,0.1028316,97285.0,97284.0,0.5976053]
[1746117468683,0.1028316,97285.0,97284.0,0.3921]
[1746117469191,0.1028316,97285.0,97284.0,0.5976053]
[1746117471987,0.1028316,97285.0,97284.0,0.3618]
[1746117472683,0.1657316,97285.0,97284.0,0.5673116]
[1746117479387,0.1657316,97285.0,97284.0,0.6318116]
[1746117481690,0.0319,97285.0,97284.0,0.6318116]
[1746117481893,0.2055095,97285.0,97284.0,0.6318116]
[1746117482277,0.2055095,97285.0,97284.0,0.4263]
[1746117482496,0.2381095,97285.0,97284.0,0.4263]
[1746117483178,0.2381095,97285.0,97284.0,0.6318116]
[1746117485092,0.2055095,97285.0,97284.0,0.6308116]
[1746117485884,0.2055095,97285.0,97284.0,0.4253]
[1746117486083,0.2055095,97285.0,97284.0,0.4263]
[1746117486283,0.2379095,97285.0,97284.0,0.4263]
[1746117486682,0.2708095,97285.0,97284.0,0.4253]
[1746117487089,0.2708095,97285.0,97284.0,0.392]
[1746117489289,0.2708095,97285.0,97284.0,0.3608]
[1746117492494,0.2708095,97285.0,97262.0,0.3608]
[1746117492495,0.0513823,97276.0,97262.0,0.3608]
[1746117492793,0.2055518,97265.0,97252.0,0.3608]
[1746117492992,0.2055518,97265.0,97245.0,0.0312]
[1746117493196,0.2055518,97265.0,97250.0,0.3608]
[1746117493398,0.2055518,97265.0,97250.0,0.566382]
[1746117493694,0.24590425,97265.0,97264.0,0.00943208]
[1746117493886,0.27820425,97265.0,97264.0,0.00154188]
[1746117495397,0.28120425,97265.0,97264.0,0.00154188]
[1746117495989,0.28120425,97265.0,97264.0,0.00918941]
[1746117496293,0.2055814,97251.0,97250.0,0.3608]
[1746117497091,0.2686814,97251.0,97250.0,0.3608]
[1746117498086,0.2686814,97251.0,97250.0,0.36841517]
[1746117500291,0.3715094,97251.0,97250.0,0.36841517]
[1746117501193,0.3715094,97251.0,97235.0,0.00110786]
[1746117501194,0.2056131,97236.0,97235.0,0.00110786]
[1746117502284,0.2056152,97235.0,97234.0,0.13870506]
[1746117502488,0.2056236,97231.0,97230.0,0.00154238]
[1746117502694,0.21509539,97231.0,97230.0,0.00154238]
[1746117503286,0.21518959,97231.0,97230.0,0.00154238]
[1746117504612,0.3180376,97231.0,97230.0,0.00454238]
[1746117504897,0.3180376,97231.0,97230.0,0.00854238]
[1746117505397,0.21518959,97231.0,97230.0,0.01621919]
[1746117507089,0.57598959,97231.0,97230.0,0.01621919]
[1746117507296,0.2056511,97218.0,97217.0,0.3608]
[1746117507505,0.2056702,97209.0,97208.0,0.3608]
[1746117507799,0.2057644,97209.0,97208.0,0.3608]
[1746117508603,0.2358644,97209.0,97208.0,0.3628]
[1746117508802,0.2358644,97209.0,97208.0,0.3658]
[1746117511807,0.2358644,97209.0,97208.0,0.3736388]
[1746117512611,0.2358644,97209.0,97208.0,0.4046388]
[1746117513707,0.2056935,97198.0,97191.0,0.2057068]
[1746117513916,0.2056998,97195.0,97194.0,0.2371019]
[1746117514103,0.2056998,97195.0,97194.0,0.0314]
[1746117515114,0.2357998,97195.0,97194.0,0.0314]
[1746117515412,0.2367998,97195.0,97194.0,0.4002]
[1746117515710,0.2066998,97195.0,97194.0,0.4002]
[1746117516105,0.2066998,97195.0,97194.0,0.61352675]
[1746117516300,0.001,97195.0,97194.0,0.61352675]
[1746117516507,0.001,97195.0,97194.0,1.16641475]
[1746117516700,0.001,97195.0,97194.0,1.06641475]
[1746117517709,0.001,97195.0,97194.0,0.81641475]
[1746117518511,0.001,97195.0,97194.0,0.88113475]
[1746117521016,0.001,97195.0,97194.0,0.77824675]
[1746117521919,0.2066998,97195.0,97194.0,0.77824675]
[1746117522114,0.2066998,97195.0,97194.0,0.57254485]
[1746117522319,0.2066998,97195.0,97194.0,0.47254485]
[1746117522512,0.2066998,97195.0,97194.0,0.67824675]
[1746117523419,0.2066998,97195.0,97194.0,0.61352675]
[1746117525328,0.001,97195.0,97194.0,0.61352675]
[1746117525619,0.001,97195.0,97194.0,0.81641475]
[1746117526614,0.001,97195.0,97194.0,0.91641475]
[1746117527020,0.2057644,97209.0,97208.0,0.2056723]
[1746117527219,0.2057644,97209.0,97208.0,0.5664723]
[1746117527922,9.42e-05,97209.0,97208.0,0.8328443]
[1746117528122,0.0817065,97230.0,97214.0,0.2056596]
[1746117528311,0.0514017,97239.0,97232.0,0.0514049]
[1746117528518,0.062,97240.0,97235.0,0.3608]
[1746117528924,0.2580207,97236.0,97235.0,0.3608]
[1746117529319,0.3200207,97236.0,97235.0,0.3608]
[1746117529626,0.3200207,97236.0,97235.0,0.5664152]
[1746117530326,0.001,97236.0,97235.0,0.5664152]
[1746117530524,0.007,97236.0,97235.0,0.5674152]
[1746117530927,0.2126131,97236.0,97235.0,0.5674152]
[1746117531117,0.2116131,97236.0,97235.0,0.5664152]
[1746117531318,0.2116131,97236.0,97235.0,0.5674152]
[1746117531626,0.2066131,97236.0,97235.0,0.5684152]
[1746117532928,0.001,97236.0,97235.0,0.5684152]
[1746117533228,0.2055858,97249.0,97248.0,0.2055856]
[1746117533423,0.2370858,97249.0,97248.0,0.2055856]
[1746117534122,0.2677858,97249.0,97248.0,0.2055856]
[1746117535127,0.2677858,97249.0,97248.0,0.213339]
[1746117536025,0.2055716,97256.0,97249.0,0.2055856]
[1746117536220,0.0322,97253.0,97249.0,0.2055856]
[1746117537430,0.0322,97253.0,97249.0,0.2065856]
[1746117538424,0.2377773,97253.0,97249.0,0.2065856]
[1746117538622,0.0322,97253.0,97249.0,0.2075856]
[1746117538824,0.2377785,97253.0,97249.0,0.2075856]
[1746117539631,0.2055806,97252.0,97249.0,0.2065856]
[1746117539832,0.2055825,97251.0,97249.0,0.2075856]
[1746117540232,0.2070835,97250.0,97249.0,0.2075856]
[1746117541024,0.2070835,97250.0,97249.0,0.2065856]
[1746117541228,0.2396835,97250.0,97249.0,0.2075856]
[1746117541431,0.0341,97250.0,97249.0,0.2075856]
[1746117541728,0.2396835,97250.0,97249.0,0.2065856]
[1746117541928,0.2396835,97250.0,97249.0,0.2075856]
[1746117542129,0.0341,97250.0,97249.0,0.2075856]
[1746117542722,0.0341,97250.0,97249.0,0.2055856]
[1746117542921,0.0341,97250.0,97249.0,0.2065856]
[1746117543634,0.0015,97250.0,97249.0,0.2075856]
[1746117543829,0.0015,97250.0,97249.0,0.5998856]
[1746117544024,0.0015,97250.0,97249.0,0.6998856]
[1746117544529,0.0015,97250.0,97249.0,0.6988856]
[1746117544732,0.0015,97250.0,97249.0,0.6998856]
[1746117544930,0.0513808,97279.0,97265.0,0.2055518]
[1746117545131,0.0326,97273.0,97265.0,0.5663518]
[1746117545331,0.0309,97272.0,97265.0,0.5663518]
[1746117546131,0.004,97266.0,97265.0,0.5663518]
[1746117546731,0.006,97266.0,97265.0,0.5663518]
[1746117546929,0.2115497,97266.0,97265.0,0.5663518]
[1746117548236,0.0371,97266.0,97265.0,0.5663518]
[1746117548631,0.0701,97266.0,97265.0,0.5663518]
[1746117550339,0.2756497,97266.0,97265.0,0.5663518]
[1746117551443,0.0701,97266.0,97265.0,0.5663518]
[1746117551643,0.2756497,97266.0,97265.0,0.5663518]
[1746117552345,0.2756497,97266.0,97265.0,0.3608]
[1746117552645,0.2055636,97260.0,97259.0,0.2055645]
[1746117552849,0.2055598,97262.0,97261.0,0.2569456]
[1746117553041,0.2378598,97262.0,97261.0,0.2569456]
[1746117553539,0.0323,97262.0,97261.0,0.2569456]
[1746117554042,0.034,97266.0,97265.0,0.2055518]
[1746117554235,0.001,97266.0,97265.0,0.5663518]
[1746117554849,0.001,97266.0,97265.0,0.5971518]
[1746117555641,0.004,97266.0,97265.0,0.5971518]
[1746117556943,0.006,97266.0,97265.0,0.5971518]
[1746117559342,0.0682,97266.0,97265.0,0.5971518]
[1746117560342,0.2737497,97266.0,97265.0,0.5971518]
[1746117560548,0.0682,97266.0,97265.0,0.5971518]
[1746117561554,0.2737497,97266.0,97265.0,0.5971518]
[1746117562055,0.0682,97266.0,97265.0,0.5971518]
[1746117564853,0.2737497,97266.0,97265.0,0.5663518]
[1746117565654,0.0682,97266.0,97265.0,0.5663518]
[1746117565851,0.0326,97273.0,97272.0,0.205537]
[1746117566051,0.0308,97283.0,97282.0,0.2055159]
[1746117566354,0.0513676,97304.0,97295.0,0.2054884]
[1746117566656,0.3608,97309.0,97295.0,0.5662884]
[1746117566849,0.2054838,97298.0,97295.0,0.5662884]
[1746117567049,0.1395346,97300.0,97295.0,0.5662884]
[1746117567249,0.2054826,97298.0,97295.0,0.5662884]
[1746117567554,0.1395346,97300.0,97295.0,0.5662884]
[1746117567747,0.01,97296.0,97295.0,0.5672884]
[1746117567943,0.2054599,97309.0,97295.0,0.3618]
[1746117568150,0.3199339,97308.0,97307.0,0.3608]
[1746117568553,0.3199339,97308.0,97307.0,0.566263]
[1746117569253,0.2054652,97307.0,97306.0,0.2054651]
[1746117569458,0.2054757,97301.0,97300.0,0.06464]
[1746117569755,0.2054757,97301.0,97300.0,0.2701178]
[1746117569945,0.2054757,97301.0,97300.0,0.2054778]
[1746117570345,0.2688757,97301.0,97300.0,0.2054778]
[1746117571154,0.2708757,97301.0,97300.0,0.2054778]
[1746117572455,0.2708757,97301.0,97300.0,0.21302292]
[1746117573447,0.2708757,97301.0,97300.0,0.00754512]
[1746117573649,0.256852,97300.0,97299.0,0.2054792]
[1746117573855,0.2054821,97300.0,97299.0,0.2054792]
[1746117574046,0.2694821,97300.0,97299.0,0.2054792]
[1746117574451,0.2054821,97298.0,97297.0,0.2363834]
[1746117575165,0.2054821,97298.0,97297.0,0.2440695]
[1746117576656,0.2074821,97298.0,97297.0,0.2440695]
[1746117577362,0.2709821,97298.0,97297.0,0.2440695]
[1746117581062,0.2709821,97298.0,97297.0,0.0076861]
[1746117581261,0.2709821,97298.0,97297.0,0.2054842]
[1746117583171,0.2054842,97297.0,97296.0,0.0328]
[1746117583469,0.2054842,97297.0,97296.0,0.24580224]
[1746117583670,0.2663842,97297.0,97296.0,0.24580224]
[1746117584470,0.2683842,97297.0,97296.0,0.24580224]
[1746117586266,0.002,97297.0,97296.0,0.24580224]
[1746117586467,0.2074842,97297.0,97296.0,0.27860224]
[1746117586668,0.002,97297.0,97296.0,0.27860224]
[1746117586873,0.0015,97320.0,97296.0,0.17311594]
[1746117587178,0.2054456,97318.0,97317.0,0.2054377]
[1746117587379,0.2054462,97316.0,97315.0,0.2054444]
[1746117587774,0.2054462,97315.0,97314.0,0.3608]
[1746117587976,0.2359462,97315.0,97314.0,0.3608]
[1746117588176,0.2359462,97315.0,97314.0,0.5662483]
[1746117589485,0.2409462,97315.0,97314.0,0.5662483]
[1746117591884,0.2409462,97315.0,97314.0,0.58147975]
[1746117592685,0.2409462,97315.0,97314.0,0.5814795]
[1746117593986,0.2409462,97315.0,97314.0,0.5662483]
[1746117594887,0.2409462,97315.0,97314.0,0.2054483]
[1746117597279,0.2054525,97313.0,97312.0,0.2054519]
[1746117597679,0.2693525,97313.0,97312.0,0.2054519]
[1746117597879,0.2054546,97311.0,97310.0,0.0305]
[1746117598079,0.2054652,97306.0,97305.0,0.3608]
[1746117598983,0.2693652,97306.0,97305.0,0.3608]
[1746117599285,0.2723652,97306.0,97305.0,0.3608]
[1746117599685,0.2723652,97306.0,97305.0,0.5662673]
[1746117599874,0.19162175,97306.0,97305.0,0.5662673]
[1746117600081,0.003,97306.0,97305.0,0.5662673]
[1746117600279,0.20414092,97308.0,97307.0,0.205463]
[1746117600587,0.2054576,97310.0,97309.0,0.2054567]
[1746117600788,0.2054576,97310.0,97309.0,0.2679567]
[1746117601887,0.2682576,97310.0,97309.0,0.2679567]
[1746117602387,0.2722576,97310.0,97309.0,0.2679567]
[1746117602588,0.2404576,97310.0,97309.0,0.2679567]
[1746117606090,0.035,97310.0,97309.0,0.2679567]
[1746117606289,0.0318,97313.0,97309.0,0.4233]
[1746117606488,0.0015,97320.0,97319.0,0.2054377]
[1746117606692,0.0015,97320.0,97319.0,0.5662377]
[1746117606993,0.2069356,97320.0,97319.0,0.5662377]
[1746117607193,0.0015,97320.0,97319.0,0.5662377]
[1746117607393,0.2069356,97320.0,97319.0,0.5993377]
[1746117607996,0.2069356,97320.0,97319.0,0.3939]
[1746117608182,0.2730356,97320.0,97319.0,0.3608]
[1746117608386,0.2568094,97318.0,97317.0,0.2567977]
[1746117608889,0.2054483,97318.0,97317.0,0.2567977]
[1746117609494,0.2064483,97318.0,97317.0,0.2567977]
[1746117610190,0.001,97318.0,97317.0,0.2567977]
[1746117610786,0.2064398,97318.0,97317.0,0.2567977]
[1746117614693,0.2370398,97318.0,97317.0,0.2567977]
[1746117615699,0.0316,97318.0,97315.0,0.0306]
[1746117615893,0.205444,97316.0,97315.0,0.0306]
[1746117616094,0.21500871,97316.0,97315.0,0.0306]
[1746117616599,0.2054525,97312.0,97311.0,0.3608]
[1746117616800,0.2054525,97312.0,97311.0,0.5662546]
[1746117616996,0.2054525,97312.0,97311.0,0.3608]
[1746117617501,0.2698525,97312.0,97311.0,0.5662546]
[1746117617895,0.2698525,97312.0,97311.0,0.2054546]
[1746117619401,0.2698525,97312.0,97311.0,0.2064546]
[1746117620799,0.256852,97300.0,97274.0,0.0513828]
[1746117620998,0.2054821,97298.0,97297.0,0.3568529]
[1746117621193,0.2054821,97298.0,97297.0,0.2568529]
[1746117621393,0.2365821,97298.0,97297.0,0.2568529]
[1746117621898,0.2365821,97298.0,97297.0,0.2608529]
[1746117622196,0.2667821,97298.0,97297.0,0.2932529]
[1746117622397,0.0613,97298.0,97297.0,0.3258529]
[1746117622608,0.2365821,97298.0,97297.0,0.4258529]
[1746117623401,0.2054821,97298.0,97297.0,0.4258529]
[1746117626090,0.2054821,97298.0,97297.0,0.3932529]
[1746117626506,0.2054793,97300.0,97299.0,0.2054799]
[1746117626690,0.2379793,97300.0,97299.0,0.2054799]
[1746117627599,0.0325,97300.0,97299.0,0.2686799]
[1746117627996,0.2379778,97300.0,97299.0,0.2726799]
[1746117628397,0.2379778,97300.0,97299.0,0.2404799]
[1746117630909,0.0325,97300.0,97299.0,0.2404799]
[1746117631100,0.0325,97300.0,97299.0,0.2731799]
[1746117631503,0.2054704,97304.0,97303.0,0.2054694]
[1746117631908,0.2363704,97304.0,97303.0,0.2363694]
[1746117632607,0.2363704,97304.0,97303.0,0.2393694]
[1746117635211,0.2363704,97304.0,97303.0,0.0339]
[1746117635408,0.2363704,97304.0,97303.0,0.2393715]
[1746117635598,0.2363704,97304.0,97303.0,0.003]
[1746117638207,0.2054821,97299.0,97298.0,0.0513705]
[1746117638410,0.2054821,97298.0,97297.0,0.0318]
[1746117638611,0.2384821,97298.0,97297.0,0.0318]
[1746117639213,0.2054842,97297.0,97296.0,0.31300034]
[1746117639407,0.2054842,97297.0,97296.0,0.1]
[1746117639601,0.2055159,97283.0,97282.0,0.3055159]
[1746117639810,0.2055159,97283.0,97282.0,0.2055159]
[1746117640114,0.19268043,97283.0,97282.0,0.2055159]
[1746117641318,0.0623,97283.0,97282.0,0.2055159]
[1746117641511,0.0306,97283.0,97282.0,0.2365159]
[1746117641707,0.2361137,97283.0,97282.0,0.2365159]
[1746117641907,0.2361137,97283.0,97282.0,0.2415159]
[1746117642413,0.2055137,97283.0,97282.0,0.2425159]
[1746117642618,0.2055137,97283.0,97282.0,0.2385159]
[1746117642823,0.2055137,97283.0,97282.0,0.2435159]
[1746117643919,0.2055137,97283.0,97282.0,0.25131199]
[1746117644515,0.2055137,97283.0,97282.0,0.25031199]
[1746117645719,0.2055137,97283.0,97282.0,0.01379609]
[1746117645910,0.2055137,97283.0,97282.0,0.21931199]
[1746117646709,0.2055137,97283.0,97282.0,0.25021199]
[1746117646910,0.2055137,97283.0,97282.0,0.21931199]
[1746117647718,0.2055137,97283.0,97282.0,0.01379609]
[1746117647921,0.2055137,97283.0,97282.0,0.21931199]
[1746117648824,0.2055137,97283.0,97282.0,0.21431199]
[1746117649024,0.2055137,97283.0,97282.0,0.21731199]
[1746117650720,0.2055137,97283.0,97282.0,0.01079609]
[1746117650918,0.2055137,97283.0,97282.0,0.21631199]
[1746117651310,0.2055137,97283.0,97282.0,0.00779609]
[1746117651515,0.2055137,97283.0,97282.0,0.2085159]
[1746117651715,0.2055137,97283.0,97282.0,0.2411159]
[1746117652124,0.0324,97285.0,97284.0,0.2055116]
[1746117652323,0.0513685,97302.0,97298.0,0.2054821]
[1746117652624,0.5662818,97299.0,97298.0,0.2054821]
[1746117653717,0.2366818,97299.0,97298.0,0.2054821]
[1746117654123,0.2366818,97299.0,97298.0,0.22062423]
[1746117654318,0.5974818,97299.0,97298.0,0.25132423]
[1746117654725,0.5974818,97299.0,97298.0,0.25432423]
[1746117655227,0.2366818,97299.0,97298.0,0.25432423]
[1746117655523,0.2366818,97299.0,97298.0,0.25532423]
[1746117656227,0.5974818,97299.0,97298.0,0.2401821]
[1746117656526,0.392,97299.0,97298.0,0.2401821]
[1746117656725,0.0312,97299.0,97298.0,0.2401821]
[1746117656918,0.0667773,97304.0,97298.0,0.2401821]
[1746117656919,0.01541,97304.0,97303.0,0.2054715]
[1746117657118,0.0617,97305.0,97304.0,0.2054694]
[1746117658125,0.0617,97305.0,97304.0,0.2074694]
[1746117658817,0.0617,97305.0,97304.0,0.2054694]
[1746117659126,0.2671673,97305.0,97304.0,0.2084694]
[1746117659326,0.6279673,97305.0,97304.0,0.2084694]
[1746117659722,0.2671673,97305.0,97304.0,0.2084694]
[1746117659923,0.6279673,97305.0,97304.0,0.2084694]
[1746117660123,0.2671673,97305.0,97304.0,0.2084694]
[1746117660533,0.2671673,97305.0,97304.0,0.003]
[1746117660726,0.2671673,97305.0,97304.0,0.2084694]
[1746117662229,0.525272,97305.0,97287.0,0.0513759]
[1746117662432,0.2055032,97289.0,97288.0,0.2386975]
[1746117662928,0.4635494,97291.0,97288.0,0.2386975]
[1746117662929,0.0952,97290.0,97289.0,0.2055011]
[1746117663124,0.3608,97291.0,97290.0,0.205499]
[1746117663329,0.5662968,97291.0,97290.0,0.2206194]
[1746117663731,0.5662968,97291.0,97290.0,0.2538194]
[1746117663933,0.5979968,97291.0,97290.0,0.2538194]
[1746117664319,0.5979968,97291.0,97290.0,0.238699]
[1746117664523,0.2371968,97291.0,97290.0,0.242699]
[1746117664831,0.2371968,97291.0,97290.0,0.243699]
[1746117665229,0.2371968,97291.0,97290.0,0.0342]
[1746117665432,0.5979968,97291.0,97290.0,0.004]
[1746117666829,0.2055116,97284.0,97283.0,0.033]
[1746117667027,0.2055137,97283.0,97271.0,0.0631]
[1746117667232,0.2055264,97277.0,97276.0,0.2371279]
[1746117667430,0.2055264,97277.0,97276.0,0.24499766]
[1746117667635,0.2055264,97277.0,97276.0,0.03946976]
[1746117668031,0.2814969,97277.0,97276.0,0.03946976]
[1746117668226,0.2814969,97277.0,97276.0,0.00786976]
[1746117668525,0.2814969,97277.0,97276.0,0.003]
[1746117669938,0.0513899,97262.0,97247.0,0.00154219]
[1746117670235,0.2055877,97248.0,97247.0,0.20713199]
[1746117670435,0.2055877,97248.0,97247.0,0.00154219]
[1746117671137,0.21509327,97248.0,97247.0,0.00454219]
[1746117671344,0.21609327,97248.0,97247.0,0.01742283]
[1746117671836,0.24669327,97248.0,97247.0,0.01742283]
[1746117673229,0.2371877,97248.0,97247.0,0.01742283]
[1746117673728,0.2371877,97248.0,97247.0,0.22301263]
[1746117674132,0.2065877,97248.0,97247.0,0.22301263]
[1746117674539,0.2065877,97248.0,97247.0,0.01742283]
[1746117675340,0.2690877,97248.0,97247.0,0.01742283]
[1746117676331,0.205594,97245.0,97244.0,0.032]
[1746117677540,0.206594,97245.0,97244.0,0.04871584]
[1746117678235,0.206594,97245.0,97244.0,0.25431204]
[1746117678538,0.206594,97245.0,97244.0,0.28491204]
[1746117678938,0.206594,97245.0,97244.0,0.25431204]
[1746117680139,0.206594,97245.0,97244.0,0.04871584]
[1746117680341,0.206594,97245.0,97244.0,0.01671584]
[1746117680536,0.2056088,97238.0,97237.0,0.0302]
[1746117680731,0.2056131,97236.0,97235.0,0.00102843]
[1746117680937,0.2056194,97233.0,97227.0,0.00154244]
[1746117681138,0.2056194,97233.0,97229.0,0.0302]
[1746117681434,0.20572775,97233.0,97227.0,0.00154244]
[1746117681641,0.20563,97228.0,97227.0,0.00154244]
[1746117681831,0.56643,97228.0,97227.0,0.00154244]
[1746117682034,0.46365201,97228.0,97213.0,0.2056615]
[1746117682231,0.2056617,97214.0,97213.0,0.2056615]
[1746117682433,0.2056617,97213.0,97212.0,0.00789369]
[1746117682638,0.0318,97216.0,97213.0,0.0514151]
[1746117682939,0.0318,97216.0,97215.0,0.2056575]
[1746117684038,0.0328,97216.0,97215.0,0.2448575]
[1746117685143,0.0328,97216.0,97215.0,0.2478575]
[1746117686834,0.001,97216.0,97215.0,0.2478575]
[1746117687238,0.001,97216.0,97215.0,0.3507215]
[1746117687442,0.001,97216.0,97215.0,0.2478575]
[1746117688834,0.00377487,98299.0,97230.0,0.2056258]
[1746117688835,0.3608,97240.0,97230.0,0.2056258]
[1746117689039,0.2056097,97238.0,97232.0,0.2056215]
[1746117689239,0.0836017,97239.0,97232.0,0.2693215]
[1746117689441,0.2056142,97236.0,97232.0,0.2693215]
[1746117689735,0.20572775,97233.0,97232.0,0.0637]
[1746117689935,0.20572775,97233.0,97232.0,0.0327]
[1746117690141,0.20672775,97233.0,97232.0,0.0327]
[1746117690639,0.23892775,97233.0,97232.0,0.0327]
[1746117690842,0.23792775,97233.0,97232.0,0.2403215]
[1746117691040,0.23792775,97233.0,97232.0,0.2413215]
[1746117691944,0.23792775,97233.0,97232.0,0.0357]
[1746117692143,0.03230835,97233.0,97213.0,0.0646]
[1746117692345,0.0514159,97212.0,97204.0,0.3608]
[1746117692645,0.3608,97221.0,97206.0,0.0642]
[1746117692646,0.2056744,97207.0,97206.0,0.0642]
[1746117693039,0.2056744,97207.0,97206.0,0.2698765]
[1746117693343,0.3608,97209.0,97208.0,0.2570881]
[1746117693944,0.5664702,97209.0,97208.0,0.2570881]
[1746117694146,0.5664702,97209.0,97208.0,0.2056702]
[1746117694540,0.5674702,97209.0,97208.0,0.2086702]
[1746117694942,0.5674702,97209.0,97208.0,0.2106702]
[1746117695135,0.5674702,97209.0,97208.0,0.21853255]
[1746117695741,0.5674702,97209.0,97208.0,0.25103255]
[1746117695941,0.5674702,97209.0,97208.0,0.04536235]
[1746117696244,0.5674702,97209.0,97208.0,0.25103465]
[1746117696643,0.2066702,97209.0,97208.0,0.25103465]
[1746117697241,0.001,97209.0,97208.0,0.25103465]
[1746117701941,0.2066702,97209.0,97208.0,0.01286235]
[1746117702649,0.063,97209.0,97208.0,0.01286235]
[1746117702844,0.063,97209.0,97208.0,0.25063465]
[1746117703245,0.26875238,97209.0,97208.0,0.01286235]
[1746117703451,0.30035238,97209.0,97208.0,0.01286235]
[1746117704250,0.09468218,97209.0,97208.0,0.21853465]
[1746117704647,0.30035238,97209.0,97208.0,0.01286235]
[1746117705549,0.30035238,97209.0,97208.0,0.25143465]
[1746117706946,0.06308218,97209.0,97208.0,0.25143465]
[1746117707145,0.00108218,97209.0,97208.0,0.25143465]
[1746117707349,0.0315,97225.0,97224.0,0.2056385]
[1746117708453,0.2371363,97225.0,97224.0,0.2056385]
[1746117708655,0.0315,97225.0,97224.0,0.2056385]
[1746117709147,0.0335,97225.0,97224.0,0.2056385]
[1746117709346,0.0652,97225.0,97224.0,0.2056385]
[1746117710053,0.002,97225.0,97224.0,0.5664385]
[1746117711157,0.002,97225.0,97224.0,0.2056385]
[1746117711355,0.004,97225.0,97224.0,0.2056385]
[1746117711858,0.002,97225.0,97224.0,0.2056385]
[1746117712055,0.0625,97229.0,97228.0,0.20563]
[1746117712254,0.032,97229.0,97228.0,0.20563]
[1746117712556,0.2376279,97229.0,97228.0,0.20563]
[1746117713255,0.2056215,97234.0,97230.0,0.0514063]
[1746117713449,0.2056215,97234.0,97233.0,0.2056164]
[1746117713852,0.2056215,97234.0,97233.0,0.2374164]
[1746117714158,0.2056319,97229.0,97228.0,0.2056274]
[1746117714361,0.2056319,97229.0,97218.0,0.0514125]
[1746117714362,0.2056321,97227.0,97226.0,0.0318]
[1746117714859,0.0315,97228.0,97227.0,0.2056321]
[1746117715058,0.2371319,97228.0,97227.0,0.2056321]
[1746117716260,0.2391319,97228.0,97227.0,0.2056321]
[1746117716463,0.0335,97228.0,97227.0,0.2056321]
[1746117716659,0.23913,97228.0,97227.0,0.2056321]
[1746117718456,0.0335,97228.0,97227.0,0.2056321]
[1746117719465,0.0335,97228.0,97227.0,0.2375321]
[1746117719657,0.002,97228.0,97227.0,0.2375321]
[1746117719859,0.002,97228.0,97227.0,0.5983321]
[1746117721964,0.001,97228.0,97227.0,0.5993321]
[1746117722161,0.2056124,97237.0,97227.0,0.5993321]
[1746117722466,0.2056124,97237.0,97236.0,0.2056131]
[1746117724872,0.2076124,97237.0,97236.0,0.2056131]
[1746117725062,0.2096124,97237.0,97236.0,0.2056131]
[1746117725368,0.2076124,97237.0,97236.0,0.2056131]
[1746117725569,0.004,97237.0,97236.0,0.2056131]
[1746117726079,0.209611,97237.0,97236.0,0.2056131]
[1746117726972,0.209611,97237.0,97235.0,0.0318]
[1746117727269,0.209611,97237.0,97236.0,0.2056131]
[1746117727865,0.004,97237.0,97236.0,0.2056131]
[1746117728079,0.3623,97285.0,97236.0,0.81518603]
[1746117728368,0.0326,97284.0,97266.0,0.1]
[1746117728568,0.0326,97284.0,97273.0,0.4121836]
[1746117728762,0.0015,97285.0,97274.0,0.0631]
[1746117728962,0.2055165,97282.0,97279.0,0.2055216]
[1746117729163,0.238418,97281.0,97280.0,0.0315]
[1746117729363,0.238418,97281.0,97280.0,0.0961]
[1746117731175,0.0329,97281.0,97280.0,0.3016201]
[1746117731377,0.012,97281.0,97280.0,0.3026201]